bitfinex/quotes_ETHUSD_20240614
["timestamp","ask_amount","ask_price","bid_price","bid_amount"]
[1718394307715,2.94092,3400.3,3400.1,0.884]
[1718394307919,2.94075,3400.5,3400.1,0.884]
[1718394308157,2.94084,3400.4,3400.1,0.884]
[1718394308544,2.94098,3400.3,3400.1,0.884]
[1718394309152,2.946,3400.2,3400.1,0.884]
[1718394310027,2.946,3400.2,3399.8,6.4104]
[1718394310215,2.946,3400.2,3399.6,5.88304]
[1718394310216,2.94118,3400.0,3399.6,8.90432]
[1718394310418,2.94111,3400.1,3399.8,0.884]
[1718394311059,2.94141,3399.8,3399.3,6.171]
[1718394311366,2.94142,3399.8,3399.4,0.884]
[1718394311860,2.94147,3399.7,3399.3,6.171]
[1718394312031,2.94135,3399.8,3398.9,10.25205]
[1718394312032,2.94169,3399.4,3398.9,16.42305]
[1718394312231,2.94169,3399.4,3398.9,6.171]
[1718394312421,2.94169,3399.4,3399.0,0.884]
[1718394312624,2.94161,3399.5,3399.0,3.82597]
[1718394312821,2.94151,3399.7,3399.2,0.884]
[1718394313128,3.49152,3399.6,3399.4,0.884]
[1718394314560,0.55,3399.6,3399.4,0.884]
[1718394314970,5.9529,3400.0,3399.4,0.884]
[1718394315289,4.98344514,3399.9,3399.6,0.884]
[1718394315559,4.98344514,3399.9,3399.0,2.94203]
[1718394315560,7.92471514,3399.9,3399.3,2.94176]
[1718394315757,2.94143,3399.7,3399.5,0.884]
[1718394316422,2.94143,3399.7,3399.3,3.82576]
[1718394317758,2.94153,3399.6,3399.0,2.94202]
[1718394318058,2.94153,3399.6,3399.0,2.94204]
[1718394318059,2.9417,3399.4,3399.0,2.94204]
[1718394318425,2.9417,3399.4,3398.9,9.99711]
[1718394319156,2.9417,3399.4,3399.1,0.884]
[1718394324937,2.9418,3399.3,3399.1,0.884]
[1718394325562,2.94153,3399.6,3399.1,0.884]
[1718394325767,2.94144,3399.7,3399.1,3.82595]
[1718394325979,2.94144,3399.7,3399.3,3.82577]
[1718394326183,6.49132,3399.9,3399.3,3.82577]
[1718394326347,2.94135,3399.8,3399.3,3.82577]
[1718394326706,4.98344514,3399.9,3399.3,3.82577]
[1718394326707,5.94144,3399.7,3399.3,3.82577]
[1718394327788,3.0,3399.7,3399.3,3.82577]
[1718394328973,3.0,3399.7,3399.4,2.94168]
[1718394329289,2.94601,3400.2,3399.7,2.94143]
[1718394329522,0.55,3400.1,3399.8,0.884]
[1718394330297,0.005,3400.2,3399.9,2.94122]
[1718394332223,0.005,3400.2,3400.0,2.94114]
[1718394332425,0.005,3400.2,3400.0,3.82514]
[1718394332564,0.005,3400.2,3400.1,2.94108]
[1718394334683,0.005,3400.2,3400.1,8.82324]
[1718394336616,0.005,3400.2,3400.1,9.70724]
[1718394337349,0.005,3400.2,3400.1,6.76616]
[1718394341559,0.005,3400.2,3400.1,13.04216]
[1718394341758,0.005,3400.2,3400.1,14.75801399]
[1718394343126,0.005,3400.2,3400.1,11.81693399]
[1718394343436,0.005,3400.2,3400.1,3.82508]
[1718394343656,0.005,3400.2,3400.1,6.76616]
[1718394343831,0.005,3400.2,3400.1,3.82508]
[1718394345229,0.005,3400.2,3400.1,0.884]
[1718394345434,0.005,3400.2,3399.9,2.94124]
[1718394345669,0.005,3400.2,3399.9,3.82524]
[1718394345863,0.005,3400.2,3399.9,0.884]
[1718394346568,0.005,3400.2,3399.9,3.82525]
[1718394347135,0.005,3400.2,3399.8,2.94134]
[1718394347329,0.005,3400.2,3399.6,2.9415]
[1718394347330,2.946,3400.2,3399.7,2.94137]
[1718394347541,2.946,3400.2,3399.8,0.884]
[1718394348348,2.9411,3400.1,3399.8,0.884]
[1718394351295,2.94119,3400.0,3399.5,8.1913]
[1718394351584,2.94119,3400.0,3399.7,0.884]
[1718394352067,2.94119,3400.0,3399.9,0.884]
[1718394352653,2.94111,3400.1,3399.9,0.884]
[1718394354763,0.005,3400.2,3400.0,8.48625]
[1718394354950,0.005,3400.2,3400.1,2.115158]
[1718394355152,0.005,3400.2,3400.1,0.884]
[1718394355355,0.005,3400.2,3400.0,5.5451]
[1718394355552,0.005,3400.2,3400.1,0.884]
[1718394356058,0.005,3400.2,3400.0,8.48626]
[1718394357059,0.005,3400.2,3400.1,0.884]
[1718394358196,0.005,3400.2,3400.0,2.94116]
[1718394358491,0.005,3400.2,3399.9,3.82524]
[1718394358784,0.005,3400.2,3399.2,2.94182]
[1718394359088,2.94144,3399.7,3399.2,4.559512]
[1718394359409,2.94137,3399.8,3399.3,2.94177]
[1718394360250,2.94137,3399.8,3399.4,2.94168]
[1718394360674,2.94118,3400.0,3399.4,2.94168]
[1718394360675,2.94128,3399.9,3399.4,2.94168]
[1718394360985,2.94117,3400.0,3399.1,2.94193]
[1718394361189,2.94607,3400.2,3399.3,1.767]
[1718394361485,2.94607,3400.2,3399.4,0.05882602]
[1718394361672,2.94117,3400.0,3399.5,2.94153]
[1718394362661,2.94111,3400.1,3399.6,2.94151]
[1718394362855,2.94602,3400.2,3399.7,2.94143]
[1718394363262,2.94109,3400.1,3399.7,2.94143]
[1718394365458,0.005,3400.2,3399.9,2.94126]
[1718394366264,2.94604,3400.2,3399.7,2.94143]
[1718394366777,2.94604,3400.2,3399.8,2.94134]
[1718394367155,0.005,3400.2,3399.8,2.94134]
[1718394367774,0.005,3400.2,3399.7,2.94143]
[1718394367775,0.005,3400.2,3399.9,2.94125]
[1718394369288,0.005,3400.2,3399.8,2.94134]
[1718394369600,0.005,3400.2,3400.1,5.88216]
[1718394372798,0.005,3400.2,3400.1,16.32254]
[1718394373107,0.005,3400.2,3400.1,19.26362]
[1718394373264,0.005,3400.2,3400.1,16.32254]
[1718394374100,0.005,3400.2,3400.1,19.26362]
[1718394374297,0.005,3400.2,3400.1,18.63323068]
[1718394374598,0.005,3400.2,3400.1,21.57431068]
[1718394376609,0.005,3400.2,3400.1,18.63323068]
[1718394379690,0.005,3400.2,3400.1,21.57431068]
[1718394380091,0.005,3400.2,3400.1,23.10694239]
[1718394380475,0.005,3400.2,3400.1,21.57431068]
[1718394380995,0.005,3400.2,3400.1,22.45631068]
[1718394381682,0.005,3400.2,3400.1,21.57431068]
[1718394381886,0.005,3400.2,3400.1,22.45631068]
[1718394384708,0.005,3400.2,3400.1,21.57431068]
[1718394385010,0.005,3400.2,3400.1,22.45631068]
[1718394387447,0.005,3400.2,3400.1,21.57431068]
[1718394387623,0.005,3400.2,3400.1,22.45631068]
[1718394388007,0.005,3400.2,3400.1,21.57431068]
[1718394388209,0.005,3400.2,3400.1,22.45631068]
[1718394389683,0.005,3400.2,3400.1,21.57431068]
[1718394389885,0.005,3400.2,3400.1,22.45631068]
[1718394390618,0.005,3400.2,3400.1,18.63323068]
[1718394391885,0.005,3400.2,3400.1,19.51523068]
[1718394392527,0.005,3400.2,3400.1,18.63323068]
[1718394392694,0.005,3400.2,3400.1,19.51523068]
[1718394393397,0.005,3400.2,3400.1,22.45631068]
[1718394393603,0.005,3400.2,3400.1,19.51523068]
[1718394394217,0.005,3400.2,3400.1,22.45631068]
[1718394394616,0.005,3400.2,3400.1,19.51523068]
[1718394394948,0.005,3400.2,3400.1,18.63323068]
[1718394395100,0.005,3400.2,3400.1,12.90093068]
[1718394398334,0.005,3400.2,3400.1,22.96525582]
[1718394398541,1e-05,3400.2,3400.1,30.43879928]
[1718394398733,1e-05,3400.2,3400.1,31.04667209]
[1718394398970,1e-05,3400.2,3400.1,66.04667209]
[1718394399468,1e-05,3400.2,3400.1,65.43879928]
[1718394401541,1e-05,3400.2,3400.1,66.32079928]
[1718394401741,1e-05,3400.2,3400.1,64.78833582]
[1718394402966,1e-05,3400.2,3400.1,63.90633582]
[1718394405673,1e-05,3400.2,3400.1,31.04659536]
[1718394406080,1e-05,3400.2,3400.1,30.43872255]
[1718394406449,1e-05,3400.2,3400.1,30.69287058]
[1718394406646,1e-05,3400.2,3400.1,33.63395248]
[1718394407265,1e-05,3400.2,3400.1,36.5904386]
[1718394407855,1e-05,3400.2,3400.1,36.89287131]
[1718394408349,1e-05,3400.2,3400.1,35.67712569]
[1718394408764,1e-05,3400.2,3400.1,37.19945856]
[1718394408977,5.4696,3402.6,3402.5,5.87802]
[1718394411850,5.4696,3402.6,3402.4,2.93907]
[1718394412349,0.02665542,3402.5,3402.3,2.93916]
[1718394412994,0.02665542,3402.5,3402.2,2.93926]
[1718394414226,0.02665542,3402.5,3402.3,2.93918]
[1718394415101,0.02665542,3402.5,3402.4,8.8173]
[1718394415306,5.4696,3402.6,3402.5,5.87802]
[1718394415888,0.005,3402.8,3402.7,8.81652]
[1718394416184,0.005,3402.8,3402.7,5.87768]
[1718394417403,0.03305109,3402.8,3402.7,5.87768]
[1718394418124,0.03305109,3402.8,3402.7,14.134587]
[1718394418633,2.93724,3404.6,3402.8,1.767]
[1718394418790,2.93756,3404.2,3403.8,2.93782]
[1718394419601,4.3534,3404.0,3403.6,2.93804]
[1718394420337,4.37127514,3403.9,3403.3,2.93831]
[1718394420506,0.06295,3404.4,3403.5,2.93815]
[1718394420507,0.55,3403.8,3403.5,2.93815]
[1718394420710,4.92117514,3404.0,3403.5,2.93815]
[1718394421046,4.92117514,3404.0,3402.7,2.93879]
[1718394421047,2.93783,3403.9,3403.4,2.93822]
[1718394421209,0.55,3403.8,3403.4,2.93822]
[1718394421597,2.93747,3404.3,3403.8,2.93782]
[1718394421833,0.55,3404.2,3403.8,2.93782]
[1718394422548,3.48755,3404.2,3403.8,2.93782]
[1718394423193,0.55,3404.2,3403.8,2.93782]
[1718394423389,3.48756,3404.2,3403.8,2.93782]
[1718394423749,2.93756,3404.2,3403.8,2.93782]
[1718394423949,3.48748,3404.3,3403.8,2.93782]
[1718394424936,2.93756,3404.2,3403.8,2.93782]
[1718394425146,2.93756,3404.2,3403.7,2.93795]
[1718394425343,0.55,3404.1,3403.7,2.93795]
[1718394425832,3.48764,3404.1,3403.7,2.93795]
[1718394428053,0.55,3404.1,3403.7,2.93795]
[1718394428408,0.06295,3404.4,3403.9,5.87549]
[1718394428613,0.06295,3404.4,3404.0,2.93765]
[1718394428815,2.9379,3403.8,3403.2,2.93836]
[1718394429049,4.7842,3403.6,3403.3,2.93824]
[1718394429250,4.7842,3403.6,3403.1,2.93841]
[1718394429550,4.7842,3403.6,3403.3,2.93824]
[1718394429928,4.7842,3403.6,3403.4,2.93823]
[1718394430327,2.93782,3403.9,3403.4,2.93823]
[1718394430541,0.55,3403.8,3403.6,2.93806]
[1718394430851,4.3991,3404.1,3403.9,2.93779]
[1718394432327,4.3991,3404.1,3403.8,2.93788]
[1718394432328,4.3991,3404.1,3404.0,2.93772]
[1718394432667,4.9491,3404.1,3404.0,2.93772]
[1718394433926,0.06295,3404.4,3404.3,2.93746]
[1718394434467,0.06295,3404.4,3404.3,5.87492]
[1718394438230,0.06295,3404.4,3404.3,9.693631]
[1718394438429,0.06295,3404.4,3404.3,12.631091]
[1718394438653,17.54404,3406.0,3405.3,5.87318]
[1718394438654,12.49,3406.0,3405.3,5.87318]
[1718394438857,2.93591,3406.1,3405.5,2.93635]
[1718394439128,2.93913365,3406.3,3405.7,2.93623]
[1718394439129,0.00340365,3406.3,3405.7,2.93623]
[1718394439339,0.00340365,3406.3,3406.0,2.93599]
[1718394439652,1.43684879,3406.3,3405.7,2.93619]
[1718394439832,4.37258879,3406.3,3405.8,2.93609]
[1718394440031,4.37258879,3406.3,3405.9,2.93607]
[1718394440465,4.37258879,3406.3,3405.8,2.93615]
[1718394440761,2.93594,3406.1,3405.3,2.93656]
[1718394441088,2.93626,3405.7,3405.1,2.93674]
[1718394441230,2.93641,3405.6,3405.1,2.93669]
[1718394441430,0.55,3405.5,3405.1,2.93669]
[1718394441652,3.48645,3405.5,3405.1,2.93669]
[1718394441955,2.9366,3405.3,3404.9,2.93688]
[1718394442165,2.93652,3405.4,3404.8,2.93702]
[1718394442331,2.93662,3405.3,3404.8,2.93702]
[1718394442529,2.93662,3405.3,3404.7,2.93711]
[1718394443264,2.93669,3405.2,3404.8,2.93702]
[1718394443985,2.93669,3405.2,3404.7,2.9371]
[1718394444194,2.93678,3405.1,3404.7,2.9371]
[1718394444531,2.9366,3405.3,3404.7,2.9371]
[1718394444532,2.93668,3405.2,3404.7,2.9371]
[1718394444730,2.93679,3405.1,3404.7,2.9371]
[1718394445557,2.9367,3405.2,3404.7,2.9371]
[1718394445758,4.91987514,3405.5,3404.3,2.93745]
[1718394445759,2.93697,3404.9,3404.3,2.93745]
[1718394446281,2.93713,3404.7,3404.2,2.93754]
[1718394446440,2.93704,3404.8,3404.2,2.93754]
[1718394446769,2.93711,3404.7,3404.2,2.93754]
[1718394447439,2.93694,3404.9,3404.0,2.9377]
[1718394447440,3.51475366,3404.6,3404.0,2.9377]
[1718394447643,2.93737,3404.4,3404.0,2.9377]
[1718394448191,2.93737,3404.4,3403.4,11.4062]
[1718394448192,2.93779,3404.0,3403.4,10.24816]
[1718394448338,2.93796,3403.8,3402.9,7.16623]
[1718394448662,7.39328,3404.2,3402.9,7.16623]
[1718394448663,2.93807,3403.6,3403.1,2.93848]
[1718394448848,0.02694967,3403.7,3403.2,2.9384]
[1718394448849,2.96493967,3403.7,3403.2,2.9384]
[1718394449048,0.02678411,3403.5,3403.2,2.9384]
[1718394449373,2.93799,3403.7,3403.2,2.9384]
[1718394449542,0.02656267,3403.4,3403.2,2.9384]
[1718394449742,2.93799,3403.7,3403.2,2.9384]
[1718394449967,0.02834036,3403.3,3403.2,2.9384]
[1718394450165,2.93799,3403.7,3403.2,2.9384]
[1718394450366,0.02825333,3403.6,3403.2,2.9384]
[1718394450539,2.96631333,3403.6,3403.2,2.9384]
[1718394450742,2.93824,3403.4,3403.0,2.93854]
[1718394450940,2.93824,3403.4,3402.8,2.93874]
[1718394451249,2.93841,3403.2,3402.8,2.93874]
[1718394451661,0.02805088,3403.1,3402.8,2.93874]
[1718394452476,2.96655088,3403.1,3402.7,2.93884]
[1718394452648,0.02805088,3403.1,3402.7,2.93884]
[1718394452856,2.96656088,3403.1,3402.6,2.93892]
[1718394453067,2.96656088,3403.1,3402.5,2.939]
[1718394453268,0.02805088,3403.1,3402.7,2.93883]
[1718394453470,0.57805088,3403.1,3402.7,2.93883]
[1718394454580,0.57805088,3403.1,3402.8,2.93874]
[1718394454796,2.01149602,3403.1,3402.3,2.93918]
[1718394455099,2.93876,3402.8,3402.3,2.93918]
[1718394455384,0.55,3402.7,3402.3,2.93917]
[1718394455681,3.51673009,3402.7,3402.3,2.93917]
[1718394456418,2.93893,3402.6,3402.2,2.93923]
[1718394456699,0.57789009,3402.7,3402.1,2.93934]
[1718394456700,3.51666439,3402.5,3402.1,2.93934]
[1718394456845,0.02764439,3402.5,3402.2,2.93927]
[1718394457046,1.98344514,3402.7,3402.2,2.93927]
[1718394457358,0.0275374,3402.4,3402.0,2.93943]
[1718394457722,0.0275745,3402.3,3402.2,2.93927]
[1718394457880,2.93806,3403.6,3403.0,2.93858]
[1718394458060,4.98344514,3403.2,3402.7,2.93882]
[1718394458391,4.98344514,3403.2,3402.8,2.93867]
[1718394459148,4.98344514,3403.2,3402.9,2.93866]
[1718394459577,4.98344514,3403.2,3403.0,2.9385]
[1718394459998,5.01096732,3403.2,3402.9,2.93865]
[1718394460280,4.98344514,3403.2,3402.9,2.93866]
[1718394462579,4.98344514,3403.2,3403.0,2.93858]
[1718394463984,3.0,3403.2,3403.1,5.87698]
[1718394464187,5.118,3403.7,3403.3,2.93828]
[1718394464393,3.0,3403.7,3403.5,2.93815]
[1718394464693,7.12004,3404.2,3403.7,2.93796]
[1718394464859,7.12004,3404.2,3403.4,2.9382]
[1718394464860,1.43344514,3404.1,3403.8,2.93788]
[1718394465211,1.43344514,3404.1,3403.4,2.9382]
[1718394465212,4.1825,3404.7,3403.4,2.93821]
[1718394465403,1.43344514,3404.6,3404.4,2.93729]
[1718394466582,0.55,3404.5,3404.4,2.93729]
[1718394468791,0.55,3404.5,3404.4,5.87466]
[1718394470702,0.55,3404.5,3404.4,2.93729]
[1718394471008,0.55,3404.5,3404.3,2.93744]
[1718394471009,1.98344514,3404.5,3404.3,2.93744]
[1718394471202,1.98344514,3404.5,3404.4,2.93737]
[1718394472870,1.98344514,3404.5,3404.4,5.87474]
[1718394474975,9.96648,3405.1,3404.2,2.93749]
[1718394474976,3.0,3405.1,3405.0,8.81055]
[1718394475312,11.368,3405.5,3405.4,5.87302]
[1718394475313,7.31,3405.5,3405.4,5.87302]
[1718394475495,1.43344514,3405.5,3405.4,5.87302]
[1718394476979,1.98344514,3405.5,3405.4,5.87302]
[1718394477499,1.98344514,3405.5,3405.4,2.93651]
[1718394480413,1.98344514,3405.5,3404.2,4.70448]
[1718394480616,1.98344514,3405.4,3404.8,2.93696]
[1718394480836,2.93661,3405.3,3404.8,2.93696]
[1718394481038,1.98344514,3405.2,3404.9,2.93694]
[1718394481182,4.92013514,3405.2,3404.8,2.93701]
[1718394481614,1.98344514,3405.2,3404.9,2.93693]
[1718394482421,1.98344514,3405.2,3404.8,2.93702]
[1718394482422,4.92013514,3405.2,3404.8,2.93702]
[1718394483401,1.98344514,3405.2,3404.8,2.93702]
[1718394484017,4.92012514,3405.2,3404.8,2.93702]
[1718394484192,7.85688514,3405.2,3404.7,2.9371]
[1718394484392,2.93682,3405.1,3404.7,2.9371]
[1718394484623,0.55,3405.0,3404.7,2.9371]
[1718394485089,0.55,3405.0,3404.8,2.93701]
[1718394485287,0.55,3405.1,3404.8,0.58742]
[1718394485489,1.767,3406.2,3404.1,8.85377]
[1718394485490,2.93592,3406.1,3405.2,2.93668]
[1718394485724,4.058,3405.9,3405.4,2.93643]
[1718394485927,1.43344514,3405.8,3405.4,2.93643]
[1718394486235,1.43344514,3405.8,3405.5,2.93641]
[1718394487432,0.55,3405.7,3405.5,2.93641]
[1718394487591,0.55,3405.7,3405.6,2.93634]
[1718394490035,0.45,3405.7,3405.6,2.93634]
[1718394491227,0.45,3405.7,3405.6,5.87268]
[1718394492295,4.0789,3406.3,3405.9,2.93604]
[1718394492496,1.43344514,3406.2,3405.5,2.93636]
[1718394492695,0.02821207,3406.1,3406.0,2.93599]
[1718394493900,0.02821207,3406.1,3406.0,5.87198]
[1718394494092,0.57821207,3406.1,3406.0,5.87198]
[1718394494496,0.02821207,3406.1,3406.0,8.80797]
[1718394494735,4.2371,3406.7,3406.3,2.93565]
[1718394494933,2.01000625,3406.6,3406.4,2.93564]
[1718394495998,1.46000625,3406.6,3406.5,5.87112]
[1718394496512,1.46000625,3406.6,3406.5,2.93556]
[1718394497437,0.02656111,3406.6,3406.5,9.687378]
[1718394497762,0.005,3407.2,3407.1,2.93504]
[1718394497915,1.46527687,3407.2,3407.1,2.93504]
[1718394498115,1.46527687,3407.2,3406.7,2.93538]
[1718394498320,1.43344514,3407.1,3406.8,2.93523]
[1718394498631,0.02678038,3407.0,3406.8,2.93523]
[1718394498816,2.01022552,3407.0,3406.8,2.93523]
[1718394499023,2.01022552,3407.0,3406.9,2.93521]
[1718394500023,2.01022552,3407.0,3406.8,2.93528]
[1718394500287,2.01022552,3407.0,3406.6,2.93547]
[1718394500755,2.01022552,3407.0,3406.7,2.93532]
[1718394500953,2.01022552,3407.0,3406.6,2.93547]
[1718394501251,2.01022552,3407.0,3406.7,2.93537]
[1718394503137,2.01022552,3407.0,3406.8,2.9353]
[1718394504242,2.01022552,3407.0,3406.7,2.93537]
[1718394504835,2.01022552,3407.0,3406.8,2.9353]
[1718394506077,2.01022552,3407.0,3406.7,2.93536]
[1718394507250,2.01022552,3407.0,3406.5,2.93549]
[1718394507251,1.43344514,3406.9,3406.5,2.93549]
[1718394507453,0.55,3406.8,3406.5,2.93549]
[1718394507676,0.57722731,3406.8,3406.5,2.93549]
[1718394509763,0.57722731,3406.8,3406.6,2.93546]
[1718394513397,0.55,3406.8,3406.6,2.93546]
[1718394515871,0.55,3406.8,3406.7,2.93539]
[1718394516269,1.98344514,3406.8,3405.9,2.93607]
[1718394516474,5.50874514,3406.7,3406.3,2.93572]
[1718394516802,0.55,3406.6,3406.3,2.93572]
[1718394517013,1.43344514,3406.5,3406.3,2.93572]
[1718394517215,0.55,3406.4,3406.3,2.93572]
[1718394517361,1.98344514,3406.4,3406.3,2.93572]
[1718394517557,1.98344514,3406.4,3405.4,4.4613]
[1718394517763,2.93584,3406.2,3405.8,2.9361]
[1718394517990,1.98344514,3406.1,3405.8,2.9361]
[1718394520716,1.98344514,3406.1,3405.9,2.93607]
[1718394521286,1.98344514,3406.1,3405.7,2.93625]
[1718394521604,4.91935514,3406.1,3405.7,2.93625]
[1718394522934,2.93624,3405.8,3405.4,2.93649]
[1718394523095,1.98344514,3405.7,3405.4,2.93649]
[1718394525570,4.91970514,3405.7,3405.3,2.93657]
[1718394526935,2.93635,3405.6,3405.3,2.93657]
[1718394527155,0.55,3405.5,3405.3,2.93657]
[1718394527356,0.55,3405.5,3405.2,2.93666]
[1718394528051,0.55,3405.5,3404.7,4.3447]
[1718394528052,3.48642,3405.5,3404.7,4.3447]
[1718394528253,3.48642,3405.5,3405.1,2.93674]
[1718394528552,3.48642,3405.5,3405.2,2.93666]
[1718394528740,3.48642,3405.5,3404.7,8.186665]
[1718394528941,2.93651,3405.4,3405.0,2.93679]
[1718394529552,2.93651,3405.4,3405.1,2.93675]
[1718394530180,6.20674514,3405.3,3404.4,2.93732]
[1718394530392,2.9368,3405.1,3404.7,2.93708]
[1718394530585,0.55,3405.0,3404.7,2.93708]
[1718394531080,3.48686,3405.0,3404.6,2.9372]
[1718394531484,0.55,3405.0,3404.7,2.93709]
[1718394532277,3.48689,3405.0,3404.6,2.93718]
[1718394532684,3.48689,3405.0,3403.3,3.0]
[1718394532685,1.43344514,3404.9,3404.2,2.93753]
[1718394532987,2.93721,3404.6,3404.2,2.93753]
[1718394538480,2.93713,3404.7,3404.3,2.93745]
[1718394538681,0.55,3404.6,3404.3,2.93745]
[1718394540503,3.48722,3404.6,3404.2,2.93752]
[1718394540811,2.93738,3404.4,3403.9,2.93776]
[1718394541011,2.93748,3404.3,3403.9,2.93778]
[1718394541300,1.43344514,3404.2,3403.5,2.9381]
[1718394541504,4.98344514,3404.2,3403.5,2.9381]
[1718394541708,2.93772,3404.0,3403.6,2.93804]
[1718394542310,2.93772,3404.0,3403.5,2.93812]
[1718394542622,2.93772,3404.0,3403.1,7.24308]
[1718394542623,2.9379,3403.8,3403.2,2.93832]
[1718394542827,3.48806,3403.7,3403.2,2.93832]
[1718394542979,2.93806,3403.7,3403.3,2.9383]
[1718394544521,2.93027348,3403.6,3403.3,2.9383]
[1718394544732,2.93808,3403.6,3403.0,2.93856]
[1718394545006,2.93833,3403.3,3402.9,2.93864]
[1718394546357,2.93833,3403.3,3401.8,5.93958]
[1718394546358,2.93875,3402.8,3402.4,7.05598]
[1718394546846,2.93877,3402.8,3402.5,2.93898]
[1718394547044,2.93877,3402.8,3402.4,7.05598]
[1718394547418,2.93859,3403.0,3402.5,2.939]
[1718394547620,2.93877,3402.8,3402.4,7.05599]
[1718394547805,2.93877,3402.8,3402.5,2.939]
[1718394548719,2.93892,3402.6,3402.2,4.0229732]
[1718394550433,2.93904,3402.5,3402.2,4.0229732]
[1718394550749,2.93904,3402.5,3402.2,2.93926]
[1718394551608,2.93894,3402.6,3402.2,2.93926]
[1718394553415,2.93894,3402.6,3402.3,2.93918]
[1718394553637,2.93904,3402.5,3402.1,2.93935]
[1718394553806,2.93894,3402.6,3402.0,4.875092]
[1718394553807,2.93894,3402.6,3402.2,2.93926]
[1718394554736,2.9391,3402.4,3402.1,2.93933]
[1718394555048,2.93903,3402.5,3402.1,2.93933]
[1718394556324,2.93903,3402.5,3402.2,2.93927]
[1718394560751,2.93895,3402.6,3402.2,2.93927]
[1718394561652,2.93903,3402.5,3402.2,2.93927]
[1718394562013,2.93911,3402.4,3402.0,7.814462]
[1718394562215,2.93902,3402.5,3402.0,7.22663]
[1718394562454,2.93919,3402.3,3402.0,2.93943]
[1718394562625,2.93912,3402.4,3402.0,2.93943]
[1718394562830,2.93919,3402.3,3402.0,2.93943]
[1718394563721,2.93919,3402.3,3401.9,2.93953]
[1718394563941,2.93937,3402.1,3401.6,4.2418]
[1718394564216,4.2055,3402.6,3401.2,4.3146]
[1718394564217,1.43344514,3402.0,3401.2,4.3146]
[1718394564421,2.93981,3401.6,3401.2,7.25467]
[1718394566053,2.93988,3401.5,3401.2,2.94007]
[1718394566253,2.93988,3401.5,3401.1,2.9402]
[1718394567985,2.93996,3401.4,3401.1,2.9402]
[1718394568350,2.93996,3401.4,3400.9,4.3886]
[1718394568858,2.93996,3401.4,3401.0,35.0]
[1718394569241,2.93996,3401.4,3400.9,4.3886]
[1718394569961,2.93996,3401.4,3400.9,7.32897]
[1718394570337,2.93996,3401.4,3400.9,2.94037]
[1718394570876,2.93996,3401.4,3401.0,2.94028]
[1718394572168,2.93996,3401.4,3401.1,2.94021]
[1718394573073,5.44894514,3402.0,3401.2,2.94012]
[1718394573272,5.93955,3401.9,3401.5,2.93985]
[1718394573477,3.48963,3401.8,3401.5,2.93985]
[1718394573779,4.866,3402.9,3401.5,2.93985]
[1718394573780,2.93911,3402.4,3402.0,2.93944]
[1718394573943,1.43344514,3402.3,3402.0,2.93944]
[1718394574345,2.31544514,3402.3,3401.8,2.93961]
[1718394574571,2.93928,3402.2,3401.8,2.93961]
[1718394574745,2.93928,3402.2,3401.9,2.93952]
[1718394574956,0.55,3402.1,3401.9,2.93952]
[1718394575179,3.55,3402.1,3401.9,2.93952]
[1718394575978,3.55,3402.1,3402.0,2.93944]
[1718394577876,3.55,3402.1,3401.9,2.93951]
[1718394578082,0.55,3402.1,3401.9,2.93951]
[1718394579075,0.55,3402.1,3401.8,2.93961]
[1718394579076,0.55,3402.1,3402.0,2.93944]
[1718394582676,2.93894,3402.6,3402.0,2.93944]
[1718394582677,0.24784049,3403.1,3402.0,1.011136]
[1718394583029,0.24784049,3403.1,3401.7,4.2324]
[1718394583030,4.43344514,3403.0,3402.6,2.93891]
[1718394583289,4.43344514,3403.0,3402.8,2.93875]
[1718394583290,1.43344514,3403.0,3402.8,2.93875]
[1718394583467,3.0,3402.9,3402.8,2.93875]
[1718394583802,2.93825,3403.4,3403.0,2.93858]
[1718394583952,1.43344514,3403.3,3403.0,2.93858]
[1718394585063,0.55,3403.2,3403.0,2.93858]
[1718394585669,0.55,3403.2,3402.7,2.93879]
[1718394585670,4.0876,3403.8,3403.1,2.93849]
[1718394585964,1.43344514,3403.7,3403.4,2.93815]
[1718394586567,1.43344514,3403.7,3403.5,2.93815]
[1718394586773,1.43344514,3403.7,3403.4,2.93821]
[1718394587466,3.48806,3403.6,3403.3,2.9383]
[1718394587913,0.55,3403.6,3403.3,2.9383]
[1718394590723,3.48808,3403.6,3403.3,2.9383]
[1718394591492,0.55,3403.6,3403.3,2.9383]
[1718394591683,0.55,3403.6,3403.4,2.93823]
[1718394592490,3.0,3403.7,3403.5,2.93815]
[1718394592672,5.93772,3404.0,3403.6,2.93806]
[1718394592873,7.37116514,3404.0,3403.6,2.93806]
[1718394593126,2.93781,3403.9,3403.5,2.93814]
[1718394593430,3.0,3403.8,3403.5,2.93814]
[1718394593634,3.0,3403.8,3403.6,2.93805]
[1718394593937,5.93782,3403.9,3403.5,2.93813]
[1718394595533,2.93815,3403.5,3403.1,2.93844]
[1718394596032,2.93815,3403.5,3403.2,2.93839]
[1718394599091,2.93825,3403.4,3403.1,2.93849]
[1718394599497,2.93816,3403.5,3403.1,2.93841]
[1718394599696,2.93817,3403.5,3403.2,2.9384]
[1718394600335,2.93817,3403.5,3403.0,2.93857]
[1718394600336,0.55,3403.8,3402.9,2.93862]
[1718394600533,3.0,3404.0,3403.6,2.938]
[1718394600736,0.55,3403.9,3403.7,2.93791]
[1718394600917,2.93747,3404.3,3403.9,2.93775]